[Event "GER-ch Youth-U18 2022"]
[Site "Willingen"]
[Date "2022.06.05"]
[Round "1.7"]
[White "Pubantz, Jan"]
[Black "Mankel, Luca"]
[Result "*"]
[ECO "D31"]
[WhiteElo "2265"]
[BlackElo "2010"]
[Annotator "TA"]
[PlyCount "87"]
[EventDate "2022.06.05"]
[EventType "swiss"]
[EventRounds "9"]
[EventCountry "GER"]
[SourceTitle "playchess.com"]
[Source "ChessBase"]
[SourceQuality "1"]
[TimeControl "40/4500+30:900+30"]

{[%evp 15,87,0,1,4,2,23,11,0,-7,0,-14,0,0,-17,39,14,35,31,59,39,35,-38,8,0,0,0,0,0,0,0,0,0,0,0,0,-15,178,-162,0,-145,-139,-134,-140,-208,-186,-271,-220,-242,0,-231,-223,-275,-262,-275,-242,-281,-263,-257,-35,-64,-50,-50,-50,-52,-17,-17,-17,-21,-18,-18,-16,-15,0,-21]} 1. d4 {[%emt 0:00:00]} d5 {[%emt 0:00:00]} 2. c4 {[%emt 0:00:00]} e6 {[%emt 0:00:00]} 3. Nc3 {[%emt 0:00:00]} c6 {[%emt 0:00:00]} 4. e4 {[%emt 0:00:00]} dxe4 {[%emt 0:00:00]} 5. Nxe4 {[%emt 0:00:00]} Bb4+ {[%emt 0:00:00]} 6. Bd2 {[%emt 0:00:00]} Qxd4 {[%emt 0:00:00]} 7. Bxb4 {[%emt 0:00:00]} Qxe4+ {[%emt 0:00:00]} 8. Ne2 {[%emt 0:00:00]} Nd7 {[%emt 0:00:00]} 9. Qd6 {[%emt 0:00:00] D31: Queen's Gambit Declined: Semi-Slav without ...Nf6 (+ Marshall Gambit and Noteboom) and Exchange Variation lines without ...Nf6.} Qe5 {[%emt 0:03:48] is now more promising than 9...a5.} 10. Qd2 {[%emt 0:00:00] Strongly threatening Bc3.} Ngf6 {[%emt 0:26:46] [#]} 11. f3 $146 {[%emt 0:00:00][%mdl 1024] Inhibits Ne4. White has compensation.} ({Predecessor:} 11. O-O-O c5 12. Bc3 Ne4 13. Bxe5 Nxd2 14. Bxg7 Rg8 15. Rxd2 Rxg7 16. g3 Ne5 17. b3 Nf3 18. Rd3 Ne5 19. Rd2 Nf3 20. Rd3 Ne5 21. Rd2 {½-½ (21) Giri,A (2773)-Carlsen,M (2864) Oslo 2022}) 11... c5 {[%emt 0:01:07]} 12. Bc3 {[%emt 0:00:00]} Qc7 {[%emt 0:00:18]} 13. O-O-O {[%emt 0:00:00]} O-O {[%emt 0:01:27][%cal Ob7b5]} 14. g4 {[%emt 0:11:50][%cal Bg2g4,Bg4g5][%mdl 32]} e5 {[%emt 0:09:29]} (14... b5 $11) 15. Ng3 $14 {[%emt 0:09:03] Nf5 is the strong threat.} Nb8 {[%emt 0:01:30]} 16. g5 {[%emt 0:20:36]} Ne8 {[%emt 0:04:28]} 17. Bd3 {[%emt 0:06:54]} Nc6 {[%emt 0:02:46]} 18. h4 {[%emt 0:10:03]} ({White should play} 18. Qe3 $14) 18... Be6 {[%emt 0:05:42]} (18... f5 $15 {is superior.}) 19. Ne4 {[%emt 0:08:25][%cal Oe4f6]} Rd8 {[%emt 0:03:36]} (19... Nd4 20. Nf6+ Kh8 21. Nxh7 $18) 20. Qe3 {[%emt 0:00:51]} b6 {[%emt 0:07:35]} 21. Nf6+ {[%emt 0:11:43]} gxf6 {[%emt 0:00:11]} 22. gxf6 {[%emt 0:00:28] Intending Rhg1+ and mate.} Rxd3 $1 {[%emt 0:00:04]} 23. Rxd3 {[%emt 0:01:59] Really sharp!} Kh8 {[%emt 0:00:45]} (23... Bxc4 $2 24. Rg1+ Kh8 25. Qh6 $18) 24. Rg1 $1 {[%emt 0:01:50]} Nd4 $1 {[%emt 0:03:17]} (24... Bxc4 25. Qh6 Rg8 26. Rxg8+ Kxg8 27. Rd1 $18) 25. Rd2 {[%emt 0:03:05] Hoping for Qh6.} Qd6 $2 {[%emt 0:01:41]} (25... Bxc4 $2 26. Qh6 Qd6 27. Rg7 $1 {[%mdl 512]} Nxf6 28. Rxh7+ $3 {[%mdl 512]} Nxh7 29. Qxd6 $18) (25... Nf5 $1 $11 {and Black is okay.} 26. Qxe5 Qxe5 27. Bxe5 Bxc4) 26. Rdg2 $4 {[%emt 0:01:02][%mdl 8192] [#]} (26. Bxd4 $18 cxd4 27. Qh6) 26... Nf5 $2 {[%emt 0:03:04]} (26... Bh3 $1 $19 {[%cal Rh3g2]} 27. Rd2 Qe6) 27. Qxe5 {[%emt 0:00:36]} (27. Qe4 $11 {remains equal.}) 27... Qxe5 $17 {[%emt 0:01:03]} 28. Bxe5 {[%emt 0:00:01]} Nxh4 {[%emt 0:00:42][%cal Bf5h4,Bh4g6,Bg6f8][%mdl 32] Pair of Knights!} 29. Rg3 {[%emt 0:00:58]} (29. Rf2 $17 {is a better defense.} Ng6 30. f4) 29... Ng6 $19 {[%emt 0:05:06]} (29... Bxc4 30. Rh3 Ng6 31. Rgh1 $11) 30. Bc3 {[%emt 0:00:29]} (30. f4 $142) 30... Bxc4 {[%emt 0:01:06] Threatens to win with ...Nf4.} 31. Rh1 {[%emt 0:00:33]} Rg8 $2 {[%emt 0:04:33]} (31... Bxa2 32. Rgh3 $16) (31... Nf4 $19 {White must now prevent ...Ne2+.} 32. Kd2 Be6) 32. Rgh3 $2 {[%emt 0:00:26]} (32. Rxh7+ $1 $11 {and White stays safe.} Kxh7 33. Rh3+ Nh4 34. Rxh4+ Kg6 35. Rg4+ Kh7 36. Rh4+ Kg6 37. Rg4+ Kh7 38. Rh4+) 32... Nf8 {[%emt 0:00:03]} 33. R3h2 {[%emt 0:00:34]} Bxa2 {[%emt 0:00:37]} 34. b4 {[%emt 0:00:26]} Bd5 {[%emt 0:00:12]} 35. bxc5 {[%emt 0:00:08]} bxc5 {[%emt 0:00:01]} (35... Bxf3 36. Re1 Bc6 37. Re7 Rg1+ 38. Kb2 bxc5 39. Rxf7 $17) 36. Re1 {[%emt 0:00:56]} Nd6 {[%emt 0:01:41]} (36... Nc7 $19 {aiming for ...Nce6.} 37. Re5 Bxf3) 37. Rd1 {[%emt 0:00:30]} Nb5 $1 {[%emt 0:00:01]} ({Don't play} 37... Rg5 38. f4 Nb5 39. fxg5 Nxc3 40. Rdd2 $14 (40. Rd3 Na2+ 41. Kb2 Nb4 $11)) 38. Rxd5 {[%emt 0:00:22]} Nxc3 {[%emt 0:00:08]} 39. Rxc5 {[%emt 0:00:12]} Rg1+ {[%emt 0:01:40]} 40. Kc2 {[%emt 0:00:46] The position is equal.} Na4 {[%emt 0:00:31]} 41. Rc8 {[%emt 0:00:00]} Rg8 {[%emt 0:00:00]} 42. Rc7 $1 {[%emt 0:00:46][%csl LRa7,LRf7]} Nb6 {[%emt 0:00:00] Threatening ...Nfd7.} 43. Rxf7 {[%emt 0:02:59]} Nbd7 {[%emt 0:00:00]} 44. Rh5 {[%emt 0:07:49] White happily takes the draw.  Weighted Error Value: White=0.46/Black=0.37} *

[Event "GER-ch Youth-U18 2022"]
[Site "Willingen"]
[Date "2022.06.05"]
[Round "1.8"]
[White "Zackrisson, Peter"]
[Black "Dobrikov, Marco"]
[Result "*"]
[ECO "E67"]
[WhiteElo "2015"]
[BlackElo "2234"]
[Annotator "TA"]
[PlyCount "106"]
[EventDate "2022.06.05"]
[EventType "swiss"]
[EventRounds "9"]
[EventCountry "GER"]
[SourceTitle "playchess.com"]
[Source "ChessBase"]
[SourceQuality "1"]
[TimeControl "40/4500+30:900+30"]

{[%evp 19,106,22,21,16,29,38,46,14,14,10,17,7,20,-29,-37,-27,-20,-33,-16,-16,-10,-19,-1,-33,33,-8,0,-38,5,0,7,-8,0,10,44,0,62,64,79,87,19,-47,-54,-52,-69,-56,-22,-116,-114,-119,-38,-104,-104,-104,-104,-104,-104,-104,-104,-104,-98,-98,-98,-101,-98,-104,-105,-83,-7,-8,-8,-8,-8,-8,-6,-6,0,0,0,0,0,0,0,0,0,0,0,0,0]} 1. d4 {[%emt 0:00:00]} Nf6 {[%emt 0:00:00]} 2. c4 {[%emt 0:00:00]} g6 {[%emt 0:00:00]} 3. g3 {[%emt 0:00:00]} Bg7 {[%emt 0:00:00]} 4. Bg2 {[%emt 0:00:00]} O-O {[%emt 0:00:00]} 5. Nc3 {[%emt 0:00:00]} d6 {[%emt 0:00:00]} 6. Nf3 {[%emt 0:00:00]} Nbd7 {[%emt 0:02:53]} 7. O-O {[%emt 0:00:00]} c6 {[%emt 0:00:35]} 8. e4 {[%emt 0:00:00]} e5 {[%emt 0:00:18]} 9. Re1 {[%emt 0:00:00]} Re8 {[%emt 0:00:46]} 10. h3 {[%emt 0:00:00]} a6 {[%emt 0:03:38]} 11. dxe5 {[%emt 0:06:08] E69: King's Indian: Fianchetto: 6...Nbd7 7 0-0 e5 8 e4 c6 9 h3.} dxe5 {[%emt 0:00:51]} 12. Be3 {[%emt 0:01:40]} b5 {[%emt 0:06:34] [#]} 13. c5 $146 {[%emt 0:11:48] White is slightly better.} ({Predecessor:} 13. Qc2 Qe7 14. Red1 Bb7 15. a3 Rec8 16. Nd2 h5 17. Rac1 Qf8 18. Nf3 Qe7 19. Qe2 Nc5 {½-½ (61) Suba,M (2529)-Matamoros Franco,C (2540) Campillos 2007}) 13... a5 {[%emt 0:07:11]} 14. Qc2 {[%emt 0:04:56]} Qc7 {[%emt 0:01:11]} 15. a4 {[%emt 0:03:07]} b4 {[%emt 0:00:37]} 16. Nb1 {[%emt 0:00:15]} (16. Na2 {feels stronger.}) 16... b3 $1 $11 {[%emt 0:08:54]} 17. Qxb3 {[%emt 0:04:01]} Nxe4 {[%emt 0:00:03]} 18. Qc2 {[%emt 0:05:03]} Nef6 {[%emt 0:00:56]} (18... f5 {is more complex.} 19. Nfd2 Nxd2 20. Nxd2 e4) 19. Nbd2 {[%emt 0:11:06][%cal Bb1d2,Bd2c4,Bc4d6][%mdl 32]} Nd5 {[%emt 0:02:55]} 20. Nc4 {[%emt 0:02:10]} Ba6 {[%emt 0:06:12] Hoping for ...Bxc4.} ({But not} 20... Nxe3 21. Rxe3 Ba6 22. Nd6 $14) 21. Nd6 {[%emt 0:06:20]} Rf8 {[%emt 0:00:47]} (21... Re7 $15) 22. Bd2 {[%emt 0:03:05]} Rab8 {[%emt 0:01:23]} 23. Rab1 {[%emt 0:09:39]} Nb4 {[%emt 0:07:58]} (23... f5 $5 {[%cal Re5e4]} 24. Ng5 e4 $15) 24. Bxb4 {[%emt 0:00:12]} Rxb4 {[%emt 0:00:01]} 25. Re4 {[%emt 0:06:35]} Qb8 {[%emt 0:03:39]} 26. Nd2 {[%emt 0:01:49]} Kh8 {[%emt 0:18:20]} 27. Qc3 {[%emt 0:08:09]} Rxe4 {[%emt 0:04:12]} (27... f5 $11 28. Rxb4 axb4) 28. Bxe4 $14 {[%emt 0:00:24]} ({Much worse is} 28. N2xe4 f5 29. Ng5 e4 $11) 28... Qc7 {[%emt 0:00:09]} 29. Nb3 {[%emt 0:00:39] White is much more active. Pair of Knights!} f5 {[%emt 0:00:33]} 30. Bg2 {[%emt 0:00:42]} (30. Bc2 $11) 30... e4 $15 {[%emt 0:00:43]} 31. Qxa5 {[%emt 0:00:17]} Qxa5 {[%emt 0:00:01]} 32. Nxa5 {[%emt 0:00:02]} Nxc5 {[%emt 0:00:10]} (32... Bd3 $5 {[%cal Rd3b1]} 33. Ra1 Bxb2 $17) 33. b4 {[%emt 0:01:09]} (33. Nxc6 $11 {keeps the balance.} Bd3 34. Rc1) 33... Nxa4 $17 {[%emt 0:00:14]} 34. Nxc6 {[%emt 0:00:17]} Nc3 {[%emt 0:00:51]} (34... Bd3 $1 $17 {[%cal Rd3b1]} 35. Rb3 Bc2) 35. b5 {[%emt 0:01:53]} Nxb1 {[%emt 0:01:33]} 36. bxa6 {[%emt 0:00:06]} Ra8 $1 {[%emt 0:00:30]} 37. a7 {[%emt 0:00:54][%cal Od6c8] [#]} Bf8 $1 {[%emt 0:04:23]} 38. Nb5 {[%emt 0:00:14] [#]} Bc5 $1 {[%emt 0:00:12]} 39. Nc7 {[%emt 0:00:43]} Rxa7 {[%emt 0:00:02]} 40. Nxa7 {[%emt 0:00:08]} Bxa7 {[%emt 0:00:00][%mdl 4096] Endgame KBN-KBN} 41. Nb5 {[%emt 0:16:48]} Bc5 {[%emt 0:15:21]} 42. Kf1 {[%emt 0:00:00]} Kg7 {[%emt 0:00:00]} 43. f3 {[%emt 0:00:00]} e3 {[%emt 0:00:00]} ({Black should play} 43... Nd2+ $17 44. Ke2 exf3+ 45. Bxf3 Nxf3 46. Kxf3 Kf6) 44. f4 {[%emt 0:00:00] The position is equal.} Nd2+ {[%emt 0:00:00]} 45. Ke2 {[%emt 0:00:00]} Nb3 {[%emt 0:00:00] ( -> ...Nc1+)} 46. Nc3 {[%emt 0:00:00]} Bd4 {[%emt 0:00:00]} 47. Na2 {[%emt 0:00:00]} h5 {[%emt 0:00:00]} 48. Bd5 {[%emt 0:00:00]} Nc5 {[%emt 0:00:00]} 49. Nb4 {[%emt 0:00:00]} Na4 {[%emt 0:00:00][%cal Oh5h4]} 50. Bf3 {[%emt 0:00:00]} Ba7 {[%emt 0:00:00]} 51. Nc2 {[%emt 0:00:00]} Nc5 {[%emt 0:00:00][%cal Oh5h4]} 52. Nxe3 {[%emt 0:00:00]} Ne6 {[%emt 0:00:00] Strongly threatening ...Nd4+.} 53. Bd5 {[%emt 0:00:00]} Kf6 {[%emt 0:00:00] Weighted Error Value: White=0.15 (very precise) /Black=0.14 (very precise)} *

[Event "GER-ch Youth-U18 2022"]
[Site "Willingen"]
[Date "2022.06.05"]
[Round "1.9"]
[White "Hinrichs, Paul"]
[Black "Kallweit, Paul"]
[Result "*"]
[ECO "D47"]
[WhiteElo "2244"]
[BlackElo "1863"]
[Annotator "TA"]
[PlyCount "32"]
[EventDate "2022.06.05"]
[EventType "swiss"]
[EventRounds "9"]
[EventCountry "GER"]
[SourceTitle "playchess.com"]
[Source "ChessBase"]
[SourceQuality "1"]
[TimeControl "40/4500+30:900+30"]

{[%evp 17,32,-15,-1,-55,-49,-66,-66,-139,-13,-8,0,-5,63,33,71,0,0]} 1. d4 {[%emt 0:00:00]} d5 {[%emt 0:00:00]} 2. c4 {[%emt 0:00:00]} c6 {[%emt 0:00:00]} 3. e3 {[%emt 0:00:00]} Nf6 {[%emt 0:00:00]} 4. Nf3 {[%emt 0:00:00]} Nbd7 {[%emt 0:03:54]} 5. Nc3 {[%emt 0:00:00]} e6 {[%emt 0:01:02]} 6. Bd3 {[%emt 0:00:00]} dxc4 {[%emt 0:03:40]} 7. Bxc4 {[%emt 0:00:00]} b5 {[%emt 0:02:08]} 8. Bd3 {[%emt 0:00:00]} Bb7 {[%emt 0:02:47]} 9. e4 {[%emt 0:00:00]} b4 $1 {[%emt 0:11:42]} 10. e5 {[%emt 0:18:13] D47: Semi-Slav: Meran System.} (10. Na4 $11) 10... bxc3 $15 {[%emt 0:10:36]} 11. exf6 {[%emt 0:00:41]} cxb2 {[%emt 0:20:23]} 12. fxg7 {[%emt 0:02:15] [#]} (12. Bxb2 $15 Bb4+ 13. Nd2) 12... Bxg7 {[%emt 0:03:24]} (12... bxa1=Q $1 $17 13. gxh8=Q Qa5+ 14. Bd2 Qxd1+ 15. Kxd1 Qxa2 16. Qxh7 Nf6) 13. Bxb2 $11 {[%emt 0:00:16]} Qa5+ {[%emt 0:01:40]} 14. Nd2 {[%emt 0:01:25]} c5 {[%emt 0:01:38]} ({Black should play} 14... Ba6 $11 15. Bxa6 Qxa6) 15. O-O $14 {[%emt 0:07:11] [#]} Bxd4 $146 {[%emt 0:09:29] [#]} ({Much weaker is} 15... cxd4 16. Rb1 Rg8 17. Bxh7 $11) ({Predecessor:} 15... cxd4 16. Be4 Bxe4 17. Nxe4 Qd5 18. Ba3 Qxe4 19. Qa4 Bf8 20. Rfe1 Qd5 21. Rad1 e5 22. Rxd4 Qxd4 23. Qxd4 Bxa3 24. Rxe5+ Nxe5 25. Qxe5+ {½-½ (28) Hrubant,I (2216)-Cernousek,L (2183) Czech Republic 1999}) 16. Nc4 {[%emt 0:03:11]} (16. Nb3 $1 $16 {[%cal Rb3a5]} Qb4 17. Nxd4) 16... Qc7 {[%emt 0:00:45] Weighted Error Value: White=0.38/Black=0.37} *

[Event "GER-ch Youth-U18 2022"]
[Site "Willingen"]
[Date "2022.06.05"]
[Round "1.10"]
[White "Dietlmeier, Tobias"]
[Black "Musiolik, David"]
[Result "0-1"]
[ECO "D31"]
[WhiteElo "1886"]
[BlackElo "2220"]
[Annotator "TA"]
[PlyCount "64"]
[EventDate "2022.06.05"]
[EventType "swiss"]
[EventRounds "9"]
[EventCountry "GER"]
[SourceTitle "playchess.com"]
[Source "ChessBase"]
[SourceQuality "1"]
[TimeControl "40/4500+30:900+30"]

{[%evp 9,64,29,22,21,21,21,27,5,5,5,6,0,0,0,0,0,0,0,8,0,0,-30,-10,-37,-9,-58,-50,-65,-58,-63,-38,-66,-65,-94,-72,-70,-87,-137,-145,-154,-123,-195,-183,-213,-189,-205,-206,-573,-465,-584,-532,-583,-537,-527,-524,-508,-495]} 1. d4 {[%emt 0:00:00]} d5 {[%emt 0:00:00]} 2. c4 {[%emt 0:00:00]} e6 {[%emt 0:00:00]} 3. Nc3 {[%emt 0:00:00]} a6 {[%emt 0:00:00]} 4. cxd5 {[%emt 0:00:00]} exd5 {[%emt 0:00:00]} 5. Nf3 {[%emt 0:00:00]} c6 {[%emt 0:00:00]} 6. Bf4 {[%emt 0:00:00] D31: Queen's Gambit Declined: Semi-Slav without ...Nf6 (+ Marshall Gambit and Noteboom) and Exchange Variation lines without ...Nf6.} Nf6 {[%emt 0:00:00]} 7. e3 {[%emt 0:00:00]} Bf5 {[%emt 0:03:44] [#]} 8. Bd3 $146 {[%emt 0:14:40] White has an edge.} ({Predecessor:} 8. Qb3 Ra7 9. Be2 Nbd7 10. h3 Qb6 11. Nd2 Be7 12. O-O O-O 13. Rac1 h6 14. Rfd1 {1-0 (70) Petrosyan,M (2613)-Savchenko,B (2577) Moscow 2019}) 8... Bxd3 {[%emt 0:10:08]} 9. Qxd3 {[%emt 0:00:09]} Be7 {[%emt 0:01:33]} 10. h3 {[%emt 0:01:59]} O-O {[%emt 0:03:03]} 11. O-O {[%emt 0:01:12]} Nbd7 {[%emt 0:01:53]} 12. Rab1 {[%emt 0:09:23]} Re8 {[%emt 0:07:47]} 13. b4 {[%emt 0:05:26]} b5 {[%emt 0:01:11]} 14. Rfc1 {[%emt 0:04:33]} a5 {[%emt 0:04:43]} 15. Ne2 {[%emt 0:17:47]} Qb6 {[%emt 0:09:50]} 16. bxa5 {[%emt 0:03:41]} (16. Ne5 {feels hotter.} Rec8 17. bxa5 Rxa5 18. Rc2) 16... Rxa5 {[%emt 0:00:39]} 17. Qc2 {[%emt 0:03:57]} (17. Rc2 $11 {should be considered.}) 17... Ba3 $15 {[%emt 0:13:29]} 18. Rd1 {[%emt 0:02:20]} Rc8 {[%emt 0:00:50]} 19. Ne5 {[%emt 0:05:56]} Qa6 {[%emt 0:01:45]} 20. Qf5 {[%emt 0:03:18]} g6 {[%emt 0:00:28]} 21. Qd3 {[%emt 0:06:26]} Bf8 {[%emt 0:01:40]} 22. Nc1 {[%emt 0:04:24]} Nb6 {[%emt 0:00:26]} 23. Bg5 {[%emt 0:01:04]} (23. Qe2 $142) 23... Ne4 $17 {[%emt 0:00:11]} 24. Bh4 {[%emt 0:00:39]} b4 {[%emt 0:04:49]} 25. Qxa6 {[%emt 0:00:05]} (25. Nb3 $17 Qxd3 26. Nxd3) 25... Rxa6 $19 {[%emt 0:00:01]} 26. Rb2 {[%emt 0:00:35]} ({Reject} 26. Ncd3 Nc3 27. Rf1 Nc4) 26... f6 {[%emt 0:02:37]} 27. Ned3 {[%emt 0:00:29]} Nc4 {[%emt 0:00:09]} 28. Rb1 {[%emt 0:00:47] [#]} (28. Rb3) 28... g5 {[%emt 0:00:42] Black is clearly winning.} 29. Bg3 {[%emt 0:00:11]} Nc3 {[%emt 0:00:09][%csl LRa2,LRb1,LRd1]} 30. Nb3 {[%emt 0:00:51]} Nxd1 {[%emt 0:00:42]} 31. Rxd1 {[%emt 0:00:05]} Rxa2 {[%emt 0:00:13] aiming for ...Rca8.} 32. Rb1 {[%emt 0:00:50]} Rca8 {[%emt 0:01:28] Weighted Error Value: White=0.35/Black=0.09 (flawless)} 0-1

[Event "GER-ch Youth-U18 2022"]
[Site "Willingen"]
[Date "2022.06.05"]
[Round "1.11"]
[White "Weihrauch, Jakob"]
[Black "Wehrle, Maximilian"]
[Result "*"]
[ECO "B81"]
[WhiteElo "2139"]
[BlackElo "1786"]
[Annotator "TA"]
[PlyCount "43"]
[EventDate "2022.06.05"]
[EventType "swiss"]
[EventRounds "9"]
[EventCountry "GER"]
[SourceTitle "playchess.com"]
[Source "ChessBase"]
[SourceQuality "1"]
[TimeControl "40/4500+30:900+30"]

{[%evp 17,43,69,62,54,45,0,54,55,149,111,145,141,196,202,217,193,202,179,404,331,333,327,331,291,279,224,205,175]} 1. e4 {[%emt 0:00:00]} c5 {[%emt 0:00:00]} 2. Nf3 {[%emt 0:00:00]} e6 {[%emt 0:00:00]} 3. d4 {[%emt 0:00:00]} cxd4 {[%emt 0:00:00]} 4. Nxd4 {[%emt 0:00:00]} Nf6 {[%emt 0:00:00]} 5. Nc3 {[%emt 0:00:00]} d6 {[%emt 0:00:00]} 6. g4 {[%emt 0:00:00]} h6 {[%emt 0:00:00]} 7. h4 {[%emt 0:00:00]} a6 {[%emt 0:00:00]} 8. Rg1 {[%emt 0:00:00]} d5 {[%emt 0:08:14] was the old line (8...g6).} 9. exd5 {[%emt 0:02:01]} Nxd5 {[%emt 0:06:28]} 10. Nxd5 {[%emt 0:00:12] B81: Sicilian Scheveningen: Keres Attack.} Qxd5 {[%emt 0:05:26]} 11. Bg2 {[%emt 0:05:33]} Qe5+ {[%emt 0:09:11]} (11... Qd6 $11) 12. Be3 $1 $14 {[%emt 0:03:38] White is slightly better.} ({Of course not} 12. Kf1 Qc7 $11) 12... Bc5 {[%emt 0:03:26]} (12... Qh2 $14 13. Ne2 Nc6) 13. c3 {[%emt 0:07:34][%cal Bc2c3,Bc3d4][%mdl 32] [#]} O-O $146 {[%emt 0:09:20][%cal Ob8c6] [#]} ({Predecessor:} 13... Bxd4 14. Qxd4 Qxd4 15. Bxd4 O-O 16. O-O-O Nc6 17. Bc5 Re8 18. f4 Ne7 19. Bxe7 Rxe7 {1-0 (27) Ehlvest,J (2517)-Schut,H (2101) Chess.com INT 2021}) 14. g5 $1 {[%emt 0:07:53][%cal Bg4g5,Bg5h6][%mdl 32] White is more active.} Bxd4 {[%emt 0:03:14]} (14... h5 $16 {might work better.}) 15. cxd4 $18 {[%emt 0:03:41]} ({Don't take} 15. Qxd4 $6 Qxd4 16. Bxd4 hxg5 $16) 15... Qh2 {[%emt 0:03:24]} 16. Kf1 {[%emt 0:04:45]} Bd7 {[%emt 0:00:50] Hoping for ...Bb5+.} 17. a4 {[%emt 0:00:06] Inhibits Bb5+.} Bc6 $2 {[%emt 0:00:58]} (17... h5) 18. gxh6 {[%emt 0:01:48]} Bxg2+ {[%emt 0:00:46]} 19. Rxg2 {[%emt 0:00:04]} Qh1+ {[%emt 0:00:14]} 20. Rg1 {[%emt 0:00:04]} Qh3+ {[%emt 0:00:09]} 21. Ke1 {[%emt 0:00:19]} g6 {[%emt 0:00:33] [#]} 22. h5 $1 {[%emt 0:17:47] Weighted Error Value: White=0.22 (precise) /Black=0.54} *

[Event "GER-ch Youth-U18 2022"]
[Site "Willingen"]
[Date "2022.06.05"]
[Round "1.12"]
[White "Rohde, Niclas"]
[Black "Haack, Kevin"]
[Result "1/2-1/2"]
[ECO "B23"]
[WhiteElo "1730"]
[BlackElo "2176"]
[Annotator "TA"]
[PlyCount "107"]
[EventDate "2022.06.05"]
[EventType "swiss"]
[EventRounds "9"]
[EventCountry "GER"]
[SourceTitle "playchess.com"]
[Source "ChessBase"]
[SourceQuality "1"]
[TimeControl "40/4500+30:900+30"]

{[%evp 18,107,-22,-48,-30,-35,-30,-54,-55,-50,-41,-54,-33,-42,-43,-56,-41,-68,-68,-66,-72,-97,-92,-85,-68,-76,-70,-70,-70,-70,-70,-67,-37,-70,-70,-70,-70,-70,-70,-113,-78,-122,-70,-71,-70,-72,-76,-121,-125,-110,0,-41,0,-45,0,0,0,0,0,0,0,0,0,0,0,0,0,0,0,-8,39,44,345,283,561,27,40,46,77,87,93,0,0,0,277,279,240,0,0,0,0,0]} 1. e4 {[%emt 0:00:00]} c5 {[%emt 0:00:00]} 2. Nc3 {[%emt 0:00:00]} Nc6 {[%emt 0:00:00]} 3. f4 {[%emt 0:00:00]} g6 {[%emt 0:00:00]} 4. Nf3 {[%emt 0:00:00]} Bg7 {[%emt 0:00:00]} 5. Bc4 {[%emt 0:00:00]} e6 {[%emt 0:00:00]} 6. d3 {[%emt 0:00:00]} Nge7 {[%emt 0:00:00]} 7. O-O {[%emt 0:00:00]} d5 {[%emt 0:00:00]} 8. Bb3 {[%emt 0:00:00]} O-O {[%emt 0:00:00]} 9. Qe1 {[%emt 0:00:00]} Na5 {[%emt 0:00:00]} 10. Bd2 {[%emt 0:03:13][%cal Oc3d5]} b6 {[%emt 0:00:00] B23: Closed Sicilian: Lines without g3.} (10... Nec6 $5 {[%cal Ra7a6]}) 11. Nd1 {[%emt 0:09:04]} Nec6 {[%emt 0:00:00] [#]} 12. c3 $146 {[%emt 0:06:16]} ({Predecessor:} 12. Bc3 d4 13. Bd2 b5 14. Ne5 Nxb3 15. Nxc6 Qc7 16. axb3 Qxc6 17. Qh4 f5 18. Nf2 {0-1 (28) Omarov,O (2278)-Akkozov,B (2363) Astana 2012}) 12... Nxb3 {[%emt 0:00:00] Black is slightly better.} 13. axb3 {[%emt 0:00:30]} dxe4 {[%emt 0:00:00]} 14. dxe4 {[%emt 0:03:27]} a5 {[%emt 0:00:00]} 15. Be3 {[%emt 0:14:19]} Ba6 {[%emt 0:07:53]} 16. Rf2 {[%emt 0:00:21]} Qd3 {[%emt 0:11:06]} 17. e5 {[%emt 0:11:30]} Rfd8 {[%emt 0:06:28]} 18. Rd2 {[%emt 0:05:30]} Qb5 {[%emt 0:03:16]} 19. Ra3 {[%emt 0:01:35] And now c4 would win.} Ne7 {[%emt 0:02:08]} 20. c4 {[%emt 0:03:17]} Qc6 {[%emt 0:00:46]} 21. Nc3 {[%emt 0:00:35]} Nf5 {[%emt 0:02:47]} 22. Ra1 {[%emt 0:05:47][%cal Ba3a1,Ba1d1,Bd1d2][%mdl 32]} Rxd2 {[%emt 0:04:43]} 23. Qxd2 {[%emt 0:01:27]} Bf8 {[%emt 0:06:57]} 24. Rd1 {[%emt 0:03:04]} Bb7 {[%emt 0:04:31]} 25. Qf2 {[%emt 0:07:06]} Be7 {[%emt 0:02:23]} 26. Rd2 {[%emt 0:02:02]} h5 {[%emt 0:03:51]} 27. h3 {[%emt 0:03:25]} Kg7 {[%emt 0:01:22]} 28. Kh2 {[%emt 0:01:20]} Rh8 {[%emt 0:02:48]} 29. Qe1 {[%emt 0:00:46]} Rd8 {[%emt 0:03:01]} (29... Qc8 $17 30. Bf2 Rd8) 30. Rxd8 $15 {[%emt 0:01:08]} Bxd8 {[%emt 0:00:03]} 31. Qd2 {[%emt 0:00:16] Against Qd7} Bh4 {[%emt 0:02:04]} 32. Bf2 {[%emt 0:02:12]} Bxf2 {[%emt 0:05:19]} 33. Qxf2 {[%emt 0:00:02]} Nd4 {[%emt 0:00:17]} (33... Qd7 $17 34. Qd2 Nd4) 34. Nd2 {[%emt 0:00:08]} Nf5 {[%emt 0:08:32]} 35. Nde4 {[%emt 0:01:28]} Ba8 {[%emt 0:06:16]} (35... Qd7 $5 {[%cal Rd7d4]} 36. Ng3 Nh6 $15) 36. Qd2 {[%emt 0:01:46]} Nd4 {[%emt 0:00:57]} 37. Qd1 {[%emt 0:00:48]} Bb7 {[%emt 0:02:19]} 38. Kg1 {[%emt 0:00:36]} Kf8 {[%emt 0:01:28]} 39. Qd2 {[%emt 0:00:58]} Kg7 {[%emt 0:00:13]} 40. Qd1 {[%emt 0:00:06]} Ba8 {[%emt 0:02:30]} 41. Kh2 {[%emt 0:16:18]} Qc7 {[%emt 0:00:00]} 42. Nf6 {[%emt 0:00:00] Pair of Knights!} Qc8 {[%emt 0:00:00] Prevents Ne8+.} 43. Nce4 {[%emt 0:00:00]} Qc6 {[%emt 0:00:22]} (43... Bxe4 $11 44. Nxe4 Kg8) 44. Qd3 {[%emt 0:00:00] Black must now prevent Qg3.} a4 $2 {[%emt 0:02:32][%mdl 8192] [#]} (44... h4 $1 $14) 45. Qg3 $1 $18 {[%emt 0:00:00] aiming for Qg5.} Qc8 $2 {[%emt 0:07:49]} (45... Nf5 46. Qg5 h4) 46. bxa4 $2 {[%emt 0:00:00]} (46. Nd6 $18 Qc6 47. bxa4) 46... Bxe4 $11 {[%emt 0:01:45]} 47. Nxe4 $18 {[%emt 0:00:00][%mdl 4096] Endgame Hoping for Qg5. KQN-KQN} Qd8 {[%emt 0:00:58]} 48. Nd6 {[%emt 0:00:00]} Nf5 {[%emt 0:01:42]} 49. Nxf5+ {[%emt 0:01:09]} (49. Qg5 $16 Qxg5 50. fxg5) 49... exf5 $11 {[%emt 0:00:01]} 50. Qe3 {[%emt 0:00:22]} Qd1 $2 {[%emt 0:01:45][%mdl 8192] [#]} (50... Qd7 $11 {and Black is okay.}) 51. e6 $1 $18 {[%emt 0:01:39]} fxe6 {[%emt 0:00:02]} 52. Qxe6 {[%emt 0:00:09]} ({White has to play} 52. Qe5+ $18 Kf7 53. Qc7+ Kf6 54. Qxb6) 52... Qd4 $11 {[%emt 0:00:44]} 53. Qe7+ {[%emt 0:01:10]} Kg8 {[%emt 0:00:35]} 54. Qe8+ {[%emt 0:00:44] Weighted Error Value: White=0.32/Black=0.42} 1/2-1/2